bitfinex/quotes_BTCUSD_20250726
["timestamp","ask_amount","ask_price","bid_price","bid_amount"]
[1753534223055,0.47459934,118100.0,118090.0,0.25358393]
[1753534223623,0.47459934,118100.0,118090.0,0.26205168]
[1753534224075,0.47459934,118100.0,118090.0,0.24645168]
[1753534224517,0.47459934,118100.0,118090.0,0.2451161]
[1753534224739,0.64986394,118100.0,118090.0,0.18776235]
[1753534224954,0.16321443,118100.0,118090.0,0.17236235]
[1753534225171,0.48051593,118100.0,118090.0,0.18083046]
[1753534225632,0.48898333,118100.0,118090.0,0.17236235]
[1753534226473,0.47492333,118100.0,118090.0,0.17236235]
[1753534226697,0.47492333,118100.0,118090.0,0.19719235]
[1753534228264,0.47492333,118100.0,118090.0,0.20566046]
[1753534229650,0.47492333,118100.0,118090.0,0.19719235]
[1753534229865,0.47492333,118100.0,118090.0,0.20566046]
[1753534230065,0.47492333,118100.0,118090.0,0.19719235]
[1753534230281,0.47492333,118100.0,118090.0,0.20566046]
[1753534230861,0.47492333,118100.0,118090.0,0.19719235]
[1753534231926,0.15762183,118100.0,118090.0,0.19719235]
[1753534232092,0.47492333,118100.0,118090.0,0.2141285]
[1753534232296,0.47492333,118100.0,118090.0,0.20566046]
[1753534232724,0.45798839,118100.0,118090.0,0.21412836]
[1753534232932,0.46645571,118100.0,118090.0,0.2141285]
[1753534233170,0.47492282,118100.0,118090.0,0.2141285]
[1753534234084,0.47492282,118100.0,118090.0,0.2303285]
[1753534234764,0.15762132,118100.0,118090.0,0.2303285]
[1753534234948,0.48339022,118100.0,118090.0,0.22186046]
[1753534235817,0.48339022,118100.0,118090.0,0.21339235]
[1753534236250,0.16608872,118100.0,118090.0,0.21339235]
[1753534236460,0.48339022,118100.0,118090.0,0.22186046]
[1753534236900,0.48339022,118100.0,118090.0,0.21339235]
[1753534237846,0.48339022,118100.0,118090.0,0.22186046]
[1753534238861,0.48339022,118100.0,118090.0,0.21339235]
[1753534239896,0.64427134,118100.0,118090.0,0.21339235]
[1753534240535,5.56087123,118100.0,118090.0,0.17236235]
[1753534241137,5.54567123,118100.0,118090.0,0.17236235]
[1753534242314,5.53161123,118100.0,118090.0,0.19735235]
[1753534247931,5.52314391,118100.0,118090.0,0.17236235]
[1753534248595,5.52314391,118100.0,118090.0,0.19735235]
[1753534249027,5.52314391,118100.0,118090.0,0.21245235]
[1753534251291,0.62733691,118100.0,118090.0,0.21245235]
[1753534251488,5.52314391,118100.0,118090.0,0.21245235]
[1753534252847,5.52314391,118100.0,118090.0,0.04309]
[1753534253059,5.51467651,118100.0,118090.0,0.21245235]
[1753534263073,5.51467651,118100.0,118090.0,0.22895235]
[1753534264586,0.61886951,118100.0,118090.0,0.22895235]
[1753534264838,5.51467651,118100.0,118090.0,0.22895235]
[1753534265853,5.52314383,118100.0,118090.0,0.22895235]
[1753534266435,5.52314383,118100.0,118090.0,0.23199235]
[1753534271392,0.62733683,118100.0,118090.0,0.23199235]
[1753534271595,5.52314383,118100.0,118090.0,0.23199235]
[1753534271820,5.20584233,118100.0,118090.0,0.23199235]
[1753534272027,5.52314383,118100.0,118090.0,0.23199235]
[1753534276027,5.97775113,118100.0,118090.0,0.003]
[1753534276223,5.99520015,118100.0,118090.0,0.003]
[1753534276443,6.00990015,118100.0,118090.0,0.003]
[1753534277033,0.02540563,118080.0,118070.0,0.22968006]
[1753534277237,0.47262713,118080.0,118070.0,0.23168006]
[1753534277656,0.32470232,118080.0,118070.0,0.23168006]
[1753534277999,0.64200382,118080.0,118070.0,0.23168006]
[1753534278287,0.32470232,118080.0,118070.0,0.23180351]
[1753534278670,0.32470232,118080.0,118070.0,0.23280351]
[1753534282115,0.14685687,118080.0,118070.0,0.24127291]
[1753534282462,0.15532563,118080.0,118070.0,0.24127299]
[1753534283419,0.15532563,118080.0,118070.0,0.24127306]
[1753534283626,0.16379446,118080.0,118070.0,0.24127306]
[1753534284048,0.17248405,118080.0,118070.0,0.24127306]
[1753534284250,0.16401522,118080.0,118070.0,0.24974254]
[1753534284474,0.16401515,118080.0,118070.0,0.25821194]
[1753534284641,0.15554646,118080.0,118070.0,0.25821194]
[1753534284845,0.16401515,118080.0,118070.0,0.26668127]
[1753534285753,0.15554646,118080.0,118070.0,0.25821194]
[1753534285980,0.16401507,118080.0,118070.0,0.26668127]
[1753534286450,0.15554646,118080.0,118070.0,0.27515053]
[1753534286599,0.16401515,118080.0,118070.0,0.24974254]
[1753534286977,0.16401515,118080.0,118070.0,0.26668127]
[1753534287245,0.15554646,118080.0,118070.0,0.26668127]
[1753534287460,0.15554646,118080.0,118070.0,0.27515053]
[1753534287884,0.15554646,118080.0,118070.0,0.26668098]
[1753534288203,0.15554639,118080.0,118070.0,0.27515017]
[1753534288601,0.15554639,118080.0,118070.0,0.26668098]
[1753534288865,0.15554639,118080.0,118070.0,0.27515017]
[1753534289042,0.15554639,118080.0,118070.0,0.26668098]
[1753534289239,0.15554639,118080.0,118070.0,0.27515017]
[1753534289531,0.165995,118080.0,118070.0,0.25821172]
[1753534289759,0.165995,118080.0,118070.0,0.26668098]
[1753534289967,0.4832965,118080.0,118070.0,0.26668098]
[1753534290186,0.48329643,118080.0,118070.0,0.26668098]
[1753534290874,0.49176504,118080.0,118070.0,0.25821172]
[1753534291070,0.49176504,118080.0,118070.0,0.26668098]
[1753534291906,0.49176504,118080.0,118070.0,0.25821172]
[1753534292104,0.49176504,118080.0,118070.0,0.24127299]
[1753534292105,0.50023387,118080.0,118070.0,0.24127299]
[1753534292579,0.49176504,118080.0,118070.0,0.24127299]
[1753534292798,0.5002338,118080.0,118070.0,0.24127299]
[1753534292983,0.49176504,118080.0,118070.0,0.24127299]
[1753534293119,0.50023373,118080.0,118070.0,0.24974239]
[1753534294909,0.50023373,118080.0,118070.0,0.24127299]
[1753534295337,0.50023423,118080.0,118070.0,0.24127306]
[1753534295549,5.39604123,118080.0,118070.0,0.24127306]
[1753534296176,5.3875724,118080.0,118070.0,0.24127306]
[1753534296362,5.3875724,118080.0,118070.0,0.24974246]
[1753534296491,5.3875724,118080.0,118070.0,0.24974254]
[1753534297542,5.39604123,118080.0,118070.0,0.24974254]
[1753534298156,5.39604123,118080.0,118070.0,0.24127306]
[1753534298623,5.39604123,118080.0,118070.0,0.24974254]
[1753534299278,5.39604123,118080.0,118070.0,0.24127306]
[1753534299499,5.3875724,118080.0,118070.0,0.24974254]
[1753534299716,5.39604123,118080.0,118070.0,0.24974254]
[1753534300243,5.3875724,118080.0,118070.0,0.24974254]
[1753534301431,5.39604116,118080.0,118070.0,0.24974254]
[1753534302045,5.3875724,118080.0,118070.0,0.24974254]
[1753534302253,5.3875724,118080.0,118070.0,0.25821194]
[1753534303062,5.39604116,118080.0,118070.0,0.24974254]
[1753534304473,5.39604116,118080.0,118070.0,0.25821194]
[1753534305126,5.39604116,118080.0,118070.0,0.24974254]
[1753534305970,5.39604116,118080.0,118070.0,0.25821194]
[1753534306159,5.39604116,118080.0,118070.0,0.24974254]
[1753534306399,5.39604116,118080.0,118070.0,0.25821194]
[1753534306625,5.39604116,118080.0,118070.0,0.24974254]
[1753534306845,5.37063482,118080.0,118070.0,0.24974254]
[1753534307070,5.06180193,118080.0,118070.0,0.25821187]
[1753534307295,5.06180193,118080.0,118070.0,0.24974254]
[1753534307432,5.0615811,118080.0,118070.0,0.25821194]
[1753534307660,5.0615811,118080.0,118070.0,0.24974254]
[1753534308890,5.0615811,118080.0,118070.0,0.25821194]
[1753534309289,5.05311234,118080.0,118070.0,0.25821194]
[1753534309516,5.06158103,118080.0,118070.0,0.25821194]
[1753534310129,5.07004979,118080.0,118070.0,0.24974254]
[1753534310305,5.07004979,118080.0,118070.0,0.25821194]
[1753534310895,5.03617518,118080.0,118070.0,0.27515024]
[1753534311076,5.04464344,118080.0,118070.0,0.27515024]
[1753534311372,5.03617518,118080.0,118070.0,0.27515024]
[1753534311585,5.03419518,118080.0,118070.0,0.27515024]
[1753534311895,5.04281513,118080.0,118070.0,0.27515024]
[1753534312108,5.04281513,118080.0,118070.0,0.59245174]
[1753534312557,5.05128346,118080.0,118070.0,0.59245174]
[1753534312954,5.04281513,118080.0,118070.0,0.59245174]
[1753534313293,5.04281513,118080.0,118070.0,0.27515024]
[1753534314732,5.04281513,118080.0,118070.0,0.59245174]
[1753534315362,5.03434695,118080.0,118070.0,0.59245174]
[1753534322562,4.895807,118090.0,118080.0,0.22768232]
[1753534322764,5.025087,118090.0,118080.0,0.57473382]
[1753534323896,5.026087,118090.0,118080.0,0.57473382]
[1753534324505,5.03478591,118090.0,118080.0,0.57473382]
[1753534324710,0.13897891,118090.0,118080.0,0.57473382]
[1753534324916,5.03478591,118090.0,118080.0,0.65921112]
[1753534325584,0.13897891,118090.0,118080.0,0.65921112]
[1753534325786,5.03478591,118090.0,118080.0,0.65921112]
[1753534326011,5.03478591,118090.0,118080.0,0.57473382]
[1753534326638,5.04325338,118090.0,118080.0,0.57473382]
[1753534326867,5.05172099,118090.0,118080.0,0.57473382]
[1753534327466,5.04325338,118090.0,118080.0,0.57473382]
[1753534328162,5.05172099,118090.0,118080.0,0.57473382]
[1753534329757,5.06018874,118090.0,118080.0,0.57473396]
[1753534329962,5.06018867,118090.0,118080.0,0.58320236]
[1753534330372,5.05172099,118090.0,118080.0,0.59167069]
[1753534331686,5.05172099,118090.0,118080.0,0.26590086]
[1753534331868,5.05172099,118090.0,118080.0,0.58320236]
[1753534332504,5.06018867,118090.0,118080.0,0.58320236]
[1753534333103,5.06018867,118090.0,118080.0,0.57473396]
[1753534333489,5.06865642,118090.0,118080.0,0.57473396]
[1753534333910,5.06865642,118090.0,118080.0,0.58320236]
[1753534334313,5.06865642,118090.0,118080.0,0.56626549]
[1753534334532,5.07712439,118090.0,118080.0,0.56626556]
[1753534334683,5.06865642,118090.0,118080.0,0.56626556]
[1753534334894,5.06865642,118090.0,118080.0,0.57473425]
[1753534335322,5.07712432,118090.0,118080.0,0.57473425]
[1753534335734,5.06865642,118090.0,118080.0,0.58320279]
[1753534336143,5.07712425,118090.0,118080.0,0.58320279]
[1753534336529,0.18131725,118090.0,118080.0,0.58320279]
[1753534336738,5.07712425,118090.0,118080.0,0.58320279]
[1753534338332,5.07910425,118090.0,118080.0,0.58320279]
[1753534338562,5.07910425,118090.0,118080.0,0.57473425]
[1753534338922,5.07910475,118090.0,118080.0,0.57473425]
[1753534339136,5.07063678,118090.0,118080.0,0.57473425]
[1753534339686,5.07063678,118090.0,118080.0,0.58320279]
[1753534339903,4.94135678,118090.0,118080.0,0.57473425]
[1753534340125,5.07063678,118090.0,118080.0,0.57473425]
[1753534340378,5.07910475,118090.0,118080.0,0.57473425]
[1753534340902,5.07910468,118090.0,118080.0,0.57473425]
[1753534341717,5.07910468,118090.0,118080.0,0.58320279]
[1753534341847,0.18329768,118090.0,118080.0,0.57473425]
[1753534342084,5.07910468,118090.0,118080.0,0.57473425]
[1753534343006,5.07910468,118090.0,118080.0,0.58320279]
[1753534343229,5.07063678,118090.0,118080.0,0.58320279]
[1753534343465,4.94135678,118090.0,118080.0,0.58320279]
[1753534343669,5.07063678,118090.0,118080.0,0.58320279]
[1753534343805,5.07063678,118090.0,118080.0,0.26590129]
[1753534343981,5.07063678,118090.0,118080.0,0.25743275]
[1753534344186,5.07063678,118090.0,118080.0,0.57473425]
[1753534344487,5.07063678,118090.0,118080.0,0.58320279]
[1753534344643,5.07910468,118090.0,118080.0,0.57473425]
[1753534345548,5.07910468,118090.0,118080.0,0.56626564]
[1753534345759,5.07910504,118090.0,118080.0,0.56626564]
[1753534346363,5.07910504,118090.0,118080.0,0.57473425]
[1753534346663,5.07063707,118090.0,118080.0,0.57473425]
[1753534346875,5.07063707,118090.0,118080.0,0.56626564]
[1753534347348,5.07910511,118090.0,118080.0,0.56626564]
[1753534348474,5.07910511,118090.0,118080.0,0.55779695]
[1753534349102,5.07910511,118090.0,118080.0,0.56626564]
[1753534349306,5.07063707,118090.0,118080.0,0.56626564]
[1753534349525,4.94982511,118090.0,118080.0,0.56626564]
[1753534349751,5.07059707,118090.0,118080.0,0.56626564]
[1753534350186,5.07059707,118090.0,118080.0,0.57473425]
[1753534350645,5.07906504,118090.0,118080.0,0.56626564]
[1753534351462,5.07906504,118090.0,118080.0,0.57473425]
[1753534352179,5.07059707,118090.0,118080.0,0.57473425]
[1753534353183,5.07059707,118090.0,118080.0,0.58320279]
[1753534353515,5.07059707,118090.0,118080.0,0.57473425]
[1753534353710,5.06212917,118090.0,118080.0,0.58320279]
[1753534354547,5.05366134,118090.0,118080.0,0.59167126]
[1753534354786,5.05366106,118090.0,118080.0,0.5916709]
[1753534355198,5.05366106,118090.0,118080.0,0.59167054]
[1753534355405,5.05366106,118090.0,118080.0,0.58320221]
[1753534355644,5.05366106,118090.0,118080.0,0.59167054]
[1753534356068,5.05366106,118090.0,118080.0,0.58320221]
[1753534356632,5.05366106,118090.0,118080.0,0.59167054]
[1753534356848,5.05366106,118090.0,118080.0,0.57473381]
[1753534357057,5.05366106,118090.0,118080.0,0.26590071]
[1753534357258,5.05366106,118090.0,118080.0,0.58320221]
[1753534357901,5.05366106,118090.0,118080.0,0.25743231]
[1753534358210,5.06212881,118090.0,118080.0,0.58320221]
[1753534358534,5.06212881,118090.0,118080.0,0.57473381]
[1753534358871,5.06212881,118090.0,118080.0,0.58320221]
[1753534359103,5.06212881,118090.0,118080.0,0.57473381]
[1753534359319,5.06212881,118090.0,118080.0,0.58320221]
[1753534359538,5.05366106,118090.0,118080.0,0.58320221]
[1753534359730,5.05366106,118090.0,118080.0,0.57473381]
[1753534360245,5.06212881,118090.0,118080.0,0.57473381]
[1753534360623,5.06212881,118090.0,118080.0,0.58320221]
[1753534360841,5.06212881,118090.0,118080.0,0.57473381]
[1753534361050,5.06212881,118090.0,118080.0,0.58320221]
[1753534361572,5.06212881,118090.0,118080.0,0.57473381]
[1753534361974,5.05366106,118090.0,118080.0,0.58320221]
[1753534366560,5.05366106,118090.0,118080.0,0.57473381]
[1753534367424,5.06212881,118090.0,118080.0,0.57473381]
[1753534367797,5.06212881,118090.0,118080.0,0.58320221]
[1753534368165,5.05366106,118090.0,118080.0,0.57473381]
[1753534368370,5.05366106,118090.0,118080.0,0.58320221]
[1753534368793,5.06212881,118090.0,118080.0,0.57473381]
[1753534369134,5.05366106,118090.0,118080.0,0.58320221]
[1753534370788,5.05366106,118090.0,118080.0,0.59167054]
[1753534371203,5.05366106,118090.0,118080.0,0.58320221]
[1753534372013,5.05362092,118090.0,118080.0,0.58320221]
[1753534372315,5.05338969,118090.0,118080.0,0.57473381]
[1753534372731,5.05338969,118090.0,118080.0,0.58320221]
[1753534373364,5.05338969,118090.0,118080.0,0.26590071]
[1753534373563,5.05338969,118090.0,118080.0,0.58320221]
[1753534374257,5.05338969,118090.0,118080.0,0.59167054]
[1753534374761,5.05338969,118090.0,118080.0,0.58320221]
[1753534374964,5.05338969,118090.0,118080.0,0.57473381]
[1753534375405,5.06185752,118090.0,118080.0,0.57473381]
[1753534376048,5.05338969,118090.0,118080.0,0.58320221]
[1753534376728,5.05338969,118090.0,118080.0,0.57473381]
[1753534377153,5.05338969,118090.0,118080.0,0.58320221]
[1753534378653,5.027987,118090.0,118080.0,0.59167054]
[1753534378879,5.03645447,118090.0,118080.0,0.59167054]
[1753534379482,0.14911508,118090.0,118080.0,0.59167054]
[1753534379633,0.14064747,118090.0,118080.0,0.59167054]
[1753534381074,0.13218,118090.0,118080.0,0.59167054]
[1753534381930,0.13218,118090.0,118080.0,0.67614784]
[1753534382559,0.13218,118090.0,118080.0,0.59167054]
[1753534383099,0.00298,118090.0,118080.0,0.59167054]
[1753534383317,0.1302,118090.0,118080.0,0.59167054]
[1753534384077,0.13866747,118090.0,118080.0,0.59167054]
[1753534388214,0.1302,118090.0,118080.0,0.59167054]
[1753534393763,0.13866754,118090.0,118080.0,0.59167054]
[1753534394314,0.1302,118090.0,118080.0,0.59167054]
[1753534394725,0.13866754,118090.0,118080.0,0.59167054]
[1753534394875,0.1302,118090.0,118080.0,0.59167054]
[1753534398288,0.13866747,118090.0,118080.0,0.59167054]
[1753534401777,0.14713515,118090.0,118080.0,0.59167054]
[1753534401999,0.14713508,118090.0,118080.0,0.59167054]
[1753534403687,0.15560283,118090.0,118080.0,0.57473381]
[1753534403820,0.15560276,118090.0,118080.0,0.58320221]
[1753534404018,0.15560276,118090.0,118080.0,0.59167054]
[1753534404467,0.15560276,118090.0,118080.0,0.58320221]
[1753534404882,0.15560276,118090.0,118080.0,0.59167054]
[1753534405411,0.14713508,118090.0,118080.0,0.59167054]
[1753534406185,0.1302,118090.0,118080.0,0.59167054]
[1753534406409,0.13866754,118090.0,118080.0,0.59167054]
[1753534406603,0.13866747,118090.0,118080.0,0.59167054]
[1753534407131,0.13866747,118090.0,118080.0,0.61120735]
[1753534407507,0.14713501,118090.0,118080.0,0.61120735]
[1753534407956,0.13866747,118090.0,118080.0,0.61120735]
[1753534408116,0.14713508,118090.0,118080.0,0.61120735]
[1753534409153,0.14713508,118090.0,118080.0,0.59167054]
[1753534409563,0.14713508,118090.0,118080.0,0.58320221]
[1753534409773,0.15560283,118090.0,118080.0,0.57473381]
[1753534410005,0.15560276,118090.0,118080.0,0.58320221]
[1753534410608,0.15560276,118090.0,118080.0,0.59167054]
[1753534411047,0.15560276,118090.0,118080.0,0.58320221]
[1753534411377,0.15560276,118090.0,118080.0,0.57473381]
[1753534411776,0.16407059,118090.0,118080.0,0.57473381]
[1753534411978,0.15560276,118090.0,118080.0,0.58320221]
[1753534412384,0.15560276,118090.0,118080.0,0.57473381]
[1753534412806,0.15560276,118090.0,118080.0,0.58320221]
[1753534413631,0.15560276,118090.0,118080.0,0.57473381]
[1753534414068,0.14713508,118090.0,118080.0,0.58320214]
[1753534414618,0.15560283,118090.0,118080.0,0.58320221]
[1753534415065,0.14713508,118090.0,118080.0,0.58320221]
[1753534415714,0.15560283,118090.0,118080.0,0.58320221]
[1753534415895,0.15560283,118090.0,118080.0,0.57473381]
[1753534416626,0.15560283,118090.0,118080.0,0.58320221]
[1753534416826,0.15560276,118090.0,118080.0,0.58320221]
[1753534417044,0.15560276,118090.0,118080.0,0.57473381]
[1753534417248,0.15560276,118090.0,118080.0,0.58320221]
[1753534417458,0.15560276,118090.0,118080.0,0.59167054]
[1753534418592,0.16407059,118090.0,118080.0,0.25743231]
[1753534418798,0.16407059,118090.0,118080.0,0.57473381]
[1753534419430,0.15560276,118090.0,118080.0,0.57473381]
[1753534419576,0.16407059,118090.0,118080.0,0.57473381]
[1753534419978,0.14713508,118090.0,118080.0,0.26590064]
[1753534420205,0.14713508,118090.0,118080.0,0.58320221]
[1753534420417,0.15560283,118090.0,118080.0,0.26590071]
[1753534420621,0.15560283,118090.0,118080.0,0.58320221]
[1753534421069,0.15560283,118090.0,118080.0,0.25743231]
[1753534421279,0.15560283,118090.0,118080.0,0.56626534]
[1753534421478,0.15560283,118090.0,118080.0,0.57473381]
[1753534422117,0.15560283,118090.0,118080.0,0.25743231]
[1753534422298,0.15560283,118090.0,118080.0,0.56626534]
[1753534422738,0.15560283,118090.0,118080.0,0.25743231]
[1753534422906,0.15560283,118090.0,118080.0,0.57473381]
[1753534423118,0.15560283,118090.0,118080.0,0.56626534]
[1753534423320,0.15560283,118090.0,118080.0,0.57473381]
[1753534424093,0.15560283,118090.0,118080.0,0.58320221]
[1753534426181,0.15560283,118090.0,118080.0,0.26590071]
[1753534426391,0.15560283,118090.0,118080.0,0.58320221]
[1753534427072,0.15560283,118090.0,118080.0,0.57473381]
[1753534427283,0.15560283,118090.0,118080.0,0.58320221]
[1753534428254,0.14713508,118090.0,118080.0,0.58320221]
[1753534428487,0.15560283,118090.0,118080.0,0.58320221]
[1753534428850,0.14713508,118090.0,118080.0,0.58320221]
[1753534430051,0.15560283,118090.0,118080.0,0.58320221]
[1753534431125,0.14713508,118090.0,118080.0,0.58320221]
[1753534431653,0.15560276,118090.0,118080.0,0.58320221]
[1753534431869,0.15560276,118090.0,118080.0,0.59167054]
[1753534432071,0.16407059,118090.0,118080.0,0.57473381]
[1753534432240,0.16407059,118090.0,118080.0,0.56626534]
[1753534432439,0.15560276,118090.0,118080.0,0.57473381]
[1753534432643,0.16407059,118090.0,118080.0,0.57473381]
[1753534433174,0.15560276,118090.0,118080.0,0.57473381]
[1753534434303,0.15560276,118090.0,118080.0,0.57473381]
[1753534434689,0.15560276,118090.0,118080.0,0.58320221]
[1753534435668,0.15560276,118090.0,118080.0,0.57473381]
[1753534435907,0.16407051,118090.0,118080.0,0.57473381]
[1753534436075,0.16407051,118090.0,118080.0,0.58320221]
[1753534437135,0.15560276,118090.0,118080.0,0.58320221]
[1753534438349,0.14713508,118090.0,118080.0,0.59167054]
[1753534440066,0.1302,118090.0,118080.0,0.59167054]
[1753534440266,0.13866747,118090.0,118080.0,0.59167054]
[1753534441320,0.13866747,118090.0,118080.0,0.72071054]
[1753534442320,0.14713501,118090.0,118080.0,0.72071054]
[1753534443265,0.15560262,118090.0,118080.0,0.72071054]
[1753534443963,0.15560262,118090.0,118080.0,0.40340904]
[1753534444180,0.15560262,118090.0,118080.0,0.72071054]
[1753534444611,0.15560262,118090.0,118080.0,0.37800384]
[1753534444824,0.17253813,118090.0,118080.0,0.7037741]
[1753534445048,0.17253813,118090.0,118080.0,0.39494114]
[1753534445289,0.17253813,118090.0,118080.0,0.58320264]
[1753534445470,0.17253813,118090.0,118080.0,0.26590114]
[1753534445757,0.1640703,118090.0,118080.0,0.58320264]
[1753534445943,0.17253813,118090.0,118080.0,0.58320264]
[1753534446156,0.1640703,118090.0,118080.0,0.58320264]
[1753534446855,0.1640703,118090.0,118080.0,0.59167097]
[1753534447100,0.1640703,118090.0,118080.0,0.58320264]
[1753534447322,0.17253813,118090.0,118080.0,0.57473417]
[1753534447553,0.1640703,118090.0,118080.0,0.58320264]
[1753534447783,0.17253805,118090.0,118080.0,0.58320264]
[1753534448117,0.17253805,118090.0,118080.0,0.26590114]
[1753534448363,0.17253805,118090.0,118080.0,0.58320264]
[1753534449857,0.17253848,118090.0,118080.0,0.55779702]
[1753534450068,5.54851265,118090.0,118080.0,0.21045669]
[1753534450610,5.5400449,118090.0,118080.0,0.21045669]
[1753534451030,5.5400449,118090.0,118080.0,0.21352669]
[1753534456674,5.531577,118090.0,118080.0,0.21352669]
[1753534457709,5.531577,118090.0,118080.0,0.22902669]
[1753534462318,5.531577,118090.0,118080.0,0.23113669]
[1753534466194,5.531577,118090.0,118080.0,0.22902669]
[1753534466403,0.63577,118090.0,118080.0,0.22902669]
[1753534466595,0.62730196,118090.0,118080.0,0.22902669]
[1753534466857,5.52310896,118090.0,118080.0,0.22595669]
[1753534467259,5.20580746,118090.0,118080.0,0.22595669]
[1753534467460,5.52310896,118090.0,118080.0,0.22595669]
[1753534471088,5.20580746,118090.0,118080.0,0.22595669]
[1753534471274,5.52310896,118090.0,118080.0,0.22595669]
[1753534471432,0.19478225,118080.0,118070.0,0.33212351]
[1753534471635,0.47166706,118080.0,118070.0,0.36764291]
[1753534471860,0.15436556,118080.0,118070.0,0.23021351]
[1753534472078,0.15436556,118080.0,118070.0,0.24715224]
[1753534472486,0.15436556,118080.0,118070.0,0.23868291]
[1753534473045,0.15436556,118080.0,118070.0,0.24715224]
[1753534473516,0.15436556,118080.0,118070.0,0.23868291]
[1753534474022,0.15436556,118080.0,118070.0,0.24715224]
[1753534474023,0.14589687,118080.0,118070.0,0.24715224]
[1753534474168,0.15436548,118080.0,118070.0,0.24715224]
[1753534475266,0.16283424,118080.0,118070.0,0.23868291]
[1753534475443,0.15436548,118080.0,118070.0,0.23868291]
[1753534476090,0.15436548,118080.0,118070.0,0.24715224]
[1753534477227,0.16481417,118080.0,118070.0,0.23868291]
[1753534477964,0.16283417,118080.0,118070.0,0.23868291]
[1753534478163,0.16283417,118080.0,118070.0,0.24715224]
[1753534478927,0.15436548,118080.0,118070.0,0.24715224]
[1753534479783,4.90427447,118090.0,118080.0,0.16937669]
[1753534479990,5.39291882,118090.0,118080.0,0.20991669]
[1753534480968,5.40138672,118090.0,118080.0,0.20991669]
[1753534481359,5.40138672,118090.0,118080.0,0.22491669]
[1753534481565,5.40138672,118090.0,118080.0,0.20991669]
[1753534481942,5.40238672,118090.0,118080.0,0.20991669]
[1753534482408,5.08508522,118090.0,118080.0,0.20991669]
[1753534482609,5.40238672,118090.0,118080.0,0.22491669]
[1753534486448,5.53130672,118090.0,118080.0,0.22491669]
[1753534491205,5.37041205,118090.0,118080.0,0.22491669]
[1753534491433,5.37888016,118090.0,118080.0,0.22491669]
[1753534494709,5.54824251,118090.0,118080.0,0.22491669]
[1753534497777,0.65243551,118090.0,118080.0,0.22491669]
[1753534498132,5.54824251,118090.0,118080.0,0.22491669]
[1753534500572,5.53977483,118090.0,118080.0,0.22491669]
[1753534509563,5.5481896,118090.0,118080.0,0.22491669]
[1753534510131,5.5397217,118090.0,118080.0,0.22491669]
[1753534511603,5.2224202,118090.0,118080.0,0.22491669]
[1753534511819,5.5397217,118090.0,118080.0,0.22491669]
[1753534521912,5.5397217,118090.0,118080.0,0.22786669]
[1753534524459,5.5397217,118090.0,118080.0,0.22491669]
[1753534532194,5.53125373,118090.0,118080.0,0.22491669]
[1753534533855,5.08212113,118080.0,118070.0,0.22696351]
[1753534534086,5.36930448,118080.0,118070.0,0.22696351]
[1753534534319,5.53868117,118080.0,118070.0,0.22696351]
[1753534534797,5.05200298,118080.0,118070.0,0.23543306]
[1753534535218,5.05200298,118080.0,118070.0,0.24586254]
[1753534535424,5.05200291,118080.0,118070.0,0.24586254]
[1753534535632,5.05200291,118080.0,118070.0,0.23739306]
[1753534535853,5.06047174,118080.0,118070.0,0.23739306]
[1753534536069,5.05200291,118080.0,118070.0,0.24586254]
[1753534536782,5.05200291,118080.0,118070.0,0.23739306]
[1753534537010,5.05200291,118080.0,118070.0,0.24586254]
[1753534537736,5.05200291,118080.0,118070.0,0.25433194]
[1753534538427,5.05200291,118080.0,118070.0,0.24586254]
[1753534538659,5.05200291,118080.0,118070.0,0.25433194]
[1753534539592,5.04353415,118080.0,118070.0,0.25433194]
[1753534539824,5.04154415,118080.0,118070.0,0.24586254]
[1753534540059,5.05001291,118080.0,118070.0,0.24586254]
[1753534540272,5.05001291,118080.0,118070.0,0.25433194]
[1753534540469,5.05001291,118080.0,118070.0,0.24586254]
[1753534540591,5.04154415,118080.0,118070.0,0.24586254]
[1753534540825,5.05200284,118080.0,118070.0,0.25433194]
[1753534541518,5.05200284,118080.0,118070.0,0.26280127]
[1753534541519,5.04353415,118080.0,118070.0,0.26280127]
[1753534541756,5.04353387,118080.0,118070.0,0.26280127]
[1753534543778,5.05200256,118080.0,118070.0,0.25433194]
[1753534544196,5.05200256,118080.0,118070.0,0.58010277]
[1753534544955,0.15619556,118080.0,118070.0,0.57163344]
[1753534545089,5.04353387,118080.0,118070.0,0.58010277]
[1753534545741,5.05200248,118080.0,118070.0,0.58010277]
[1753534546548,5.05200248,118080.0,118070.0,0.58857203]
[1753534547471,5.05200248,118080.0,118070.0,0.58010277]
[1753534547672,5.05200248,118080.0,118070.0,0.26280127]
[1753534547885,5.05200248,118080.0,118070.0,0.27127053]
[1753534548510,4.897797,118080.0,118070.0,0.58857152]
[1753534548714,4.90427518,118080.0,118070.0,0.58857152]
[1753534548855,4.91274344,118080.0,118070.0,0.58857152]
[1753534549079,5.05001177,118080.0,118070.0,0.58857152]
[1753534549279,5.04154344,118080.0,118070.0,0.58857152]
[1753534549481,5.05001184,118080.0,118070.0,0.58010248]
[1753534549680,5.04154344,118080.0,118070.0,0.58857116]
[1753534550106,5.03307518,118080.0,118070.0,0.58857116]
[1753534553787,5.024607,118080.0,118070.0,0.58857116]
[1753534556894,0.1288,118080.0,118070.0,0.58857116]
[1753534564545,0.1288,118080.0,118070.0,0.71737116]
[1753534568668,0.6288,118080.0,118070.0,0.71737116]
[1753534572153,0.6288,118080.0,118070.0,0.40006966]
[1753534572387,0.6288,118080.0,118070.0,0.71737116]
[1753534573000,0.1288,118080.0,118070.0,0.71737116]
[1753534576690,0.13726818,118080.0,118070.0,0.71737116]
[1753534578164,0.1288,118080.0,118070.0,0.71737116]
[1753534582922,0.13726818,118080.0,118070.0,0.71737116]
[1753534584855,0.13726818,118080.0,118070.0,0.40006966]
[1753534585076,0.13726818,118080.0,118070.0,0.71737116]
[1753534585939,0.1288,118080.0,118070.0,0.71737116]
[1753534586376,0.1288,118080.0,118070.0,0.40006966]
[1753534586611,0.1288,118080.0,118070.0,0.71737116]
[1753534586817,0.1288,118080.0,118070.0,0.40006966]
[1753534587017,0.1288,118080.0,118070.0,0.71737116]
[1753534587679,0.13726826,118080.0,118070.0,0.71737116]
[1753534588122,0.1288,118080.0,118070.0,0.40006966]
[1753534588346,0.13726833,118080.0,118070.0,0.24586224]
[1753534588594,5.05001234,118080.0,118070.0,0.23739277]
[1753534588822,5.04154373,118080.0,118070.0,0.26280056]
[1753534589056,5.04154373,118080.0,118070.0,0.57163294]
[1753534589277,5.04154373,118080.0,118070.0,0.5885711]
[1753534589503,5.04154373,118080.0,118070.0,0.58010206]
[1753534589721,5.04154373,118080.0,118070.0,0.5885711]
[1753534589941,5.03307533,118080.0,118070.0,0.5885711]
[1753534590751,5.024607,118080.0,118070.0,0.5885711]
[1753534590975,5.03307533,118080.0,118070.0,0.7173311]
[1753534591861,5.03307526,118080.0,118070.0,0.7173311]
[1753534592694,5.04154366,118080.0,118070.0,0.7173311]
[1753534592924,5.03307526,118080.0,118070.0,0.22892351]
[1753534593142,5.55832965,118080.0,118070.0,0.16951448]
[1753534593363,5.25632815,118080.0,118070.0,0.16951448]
[1753534593585,5.56516132,118080.0,118070.0,0.16951448]